fUST/lending_fUST_20260410
["ID","MTS","AMOUNT","RATE_DAILY","PERIOD"]
[420179725,1775753441150,-500.31474246,0.00019178,18]
[420179727,1775753441160,-500.0,0.00019178,18]
[420179728,1775753441169,-502.73395958,0.00019178,18]
[420179729,1775753441179,-500.0,0.00019178,18]
[420179730,1775753441191,-500.85843863,0.00019178,18]
[420179731,1775753441201,-500.0,0.00019178,18]
[420179732,1775753441211,-567.96995269,0.00019178,18]
[420179733,1775753441222,-501.03785323,0.00019178,18]
[420179734,1775753441233,-500.0,0.00019178,18]
[420179735,1775753441242,-500.0,0.00019178,18]
[420179736,1775753441252,-500.0,0.00019178,18]
[420179737,1775753441262,-500.0,0.00019178,18]
[420179738,1775753441272,-500.0,0.00019178,18]
[420179739,1775753441282,-500.0,0.00019178,18]
[420179740,1775753441292,-500.0,0.00019178,18]
[420179741,1775753441302,-199.57435926,0.00019178,18]
[420179742,1775753441312,-500.37988744,0.00019178,18]
[420179743,1775753441323,-600.66,0.00019178,18]
[420179744,1775753441332,-500.0,0.00019178,18]
[420179745,1775753441342,-555.96,0.00019178,18]
[420179746,1775753441353,-533.75304457,0.00019178,18]
[420179747,1775753441362,-500.0,0.00019178,18]
[420179748,1775753441373,-500.0,0.00019178,18]
[420179749,1775753441384,-500.0,0.00019178,18]
[420179750,1775753441395,-500.0,0.00019178,18]
[420179751,1775753441405,-501.60189448,0.00019178,18]
[420179752,1775753441415,-514.63,0.00019178,18]
[420179753,1775753441427,-500.0,0.00019178,18]
[420179754,1775753441436,-500.0,0.00019178,18]
[420179755,1775753441445,-559.48247321,0.00019178,18]
[420179756,1775753441455,-500.0,0.00019178,18]
[420179757,1775753441465,-517.81,0.00019178,18]
[420179758,1775753441475,-500.0,0.00019178,18]
[420179759,1775753441486,-203.234018,0.00019178,18]
[420179760,1775753441495,-500.0,0.00019178,18]
[420179761,1775753441505,-500.0,0.00019178,18]
[420179762,1775753441514,-500.0,0.00019178,18]
[420179763,1775753441525,-500.0,0.00019178,18]
[420179764,1775753441534,-500.0,0.00019178,18]
[420179765,1775753441543,-500.0,0.00019178,18]
[420179766,1775753441554,-500.0,0.00019178,18]
[420179767,1775753441564,-500.0,0.00019178,18]
[420179768,1775753441574,-500.0,0.00019178,18]
[420179769,1775753441584,-995.41,0.00019178,18]
[420179770,1775753441594,-500.0,0.00019178,18]
[420179771,1775753441603,-500.0,0.00019178,18]
[420179772,1775753441613,-753.96,0.00019178,18]
[420179773,1775753441623,-744.54,0.00019178,18]
[420179774,1775753441632,-549.54503022,0.00019178,18]
[420179775,1775753441641,-1157.34,0.00019178,18]
[420179776,1775753441651,-500.0,0.00019178,18]
[420179777,1775753441660,-500.0,0.00019178,18]
[420179778,1775753441669,-534.76884994,0.00019178,18]
[420179779,1775753441678,-562.32,0.00019178,18]
[420179780,1775753441687,-1017.07,0.00019178,18]
[420179781,1775753441697,-500.0,0.00019178,18]
[420179782,1775753441706,-1227.65,0.00019178,18]
[420179783,1775753441715,-500.0,0.00019178,18]
[420179784,1775753441725,-1294.29,0.00019178,18]
[420179785,1775753441734,-500.0,0.00019178,18]
[420179786,1775753441745,-500.0,0.00019178,18]
[420179787,1775753441754,-500.0,0.00019178,10]
[420179788,1775753441763,-505.7,0.00019178,18]
[420179789,1775753441772,-1132.9,0.00019178,18]
[420179790,1775753441781,-500.0,0.00019178,18]
[420179791,1775753441791,-500.0,0.00019178,18]
[420179792,1775753441802,-500.0,0.00019178,2]
[420179793,1775753441811,-3898.73,0.00019178,18]
[420179794,1775753441820,-500.0,0.00019178,18]
[420179795,1775753441831,-500.0,0.00019178,18]
[420179796,1775753441841,-500.0,0.00019178,18]
[420179797,1775753441853,-500.0,0.00019178,18]
[420179798,1775753441863,-499.95,0.00019178,2]
[420179799,1775753441873,-1093.65,0.00019178,18]
[420179800,1775753441884,-1101.88,0.00019178,18]
[420179801,1775753441893,-500.0,0.00019178,18]
[420179802,1775753441903,-500.0,0.00019178,18]
[420179803,1775753441913,-500.0,0.00019178,18]
[420179804,1775753441922,-500.0,0.00019178,18]
[420179805,1775753441931,-500.0,0.00019178,18]
[420179806,1775753441940,-1116.76,0.00019178,18]
[420179807,1775753441949,-500.0,0.00019178,18]
[420179808,1775753441958,-500.0,0.00019178,18]
[420179809,1775753441968,-747.32,0.00019178,18]
[420179810,1775753441977,-500.0,0.00019178,18]
[420179811,1775753441987,-500.0,0.00019178,18]
[420179812,1775753441996,-1000.0,0.00019178,2]
[420179813,1775753442005,-500.0,0.00019178,18]
[420179814,1775753442015,-500.0,0.00019178,18]
[420179815,1775753442024,-629.16263525,0.00019178,18]
[420179816,1775753442034,-500.0,0.00019178,18]
[420179817,1775753442044,-500.0,0.00019178,18]
[420179818,1775753442055,-170.52643341,0.00019178,18]
[420179819,1775753442066,-500.0,0.00019178,18]
[420179820,1775753442077,-1272.84,0.00019178,18]
[420179821,1775753442088,-650.0,0.00019178,18]
[420179822,1775753442098,-1591.36,0.00019178,18]
[420179823,1775753442108,-500.0,0.00019178,18]
[420179824,1775753442119,-500.0,0.00019178,18]
[420179825,1775753442129,-500.0,0.00019178,18]
[420179826,1775753442139,-500.0,0.00019178,18]
[420179827,1775753442150,-500.0,0.00019178,18]
[420179828,1775753442161,-2085.55,0.00019178,18]
[420179829,1775753442171,-665.52,0.00019178,18]
[420179830,1775753442182,-500.0,0.00019178,18]
[420179831,1775753442191,-500.0,0.00019178,18]
[420179832,1775753442202,-500.0,0.00019178,18]
[420179833,1775753442212,-500.0,0.00019178,18]
[420179834,1775753442223,-590.6099526,0.00019178,18]
[420179835,1775753442234,-416.035798,0.00019178,18]
[420179836,1775753442244,-500.0,0.00019178,18]
[420179837,1775753442254,-500.0,0.00019178,18]
[420179838,1775753442264,-500.0,0.00019178,18]
[420179839,1775753442274,-500.0,0.00019178,18]
[420179840,1775753442285,-500.0,0.00019178,18]
[420179841,1775753442295,-1717.13,0.00019178,18]
[420179842,1775753442307,-359.772704,0.00019178,18]
[420179843,1775753442318,-639.8,0.00019178,18]
[420179844,1775753442328,-3993.03,0.00019178,18]
[420179845,1775753442338,-663.92,0.00019178,18]
[420179846,1775753442348,-500.0,0.00019178,18]
[420179847,1775753442358,-500.0,0.00019178,18]
[420179848,1775753442369,-2057.67,0.00019178,18]
[420179849,1775753442379,-500.0,0.00019178,18]
[420179850,1775753442390,-500.0,0.00019178,18]
[420179851,1775753442400,-1655.87,0.00019178,18]
[420179852,1775753442410,-500.0,0.00019178,18]
[420179853,1775753442419,-500.0,0.00019178,18]
[420179854,1775753442429,-500.0,0.00019178,18]
[420179855,1775753442439,-500.0,0.00019178,18]
[420179856,1775753442448,-500.0,0.00019178,18]
[420179857,1775753442459,-500.0,0.00019178,18]
[420179858,1775753442468,-889.14,0.00019178,18]
[420179859,1775753442480,-500.0,0.00019178,18]
[420179860,1775753442489,-500.0,0.00019178,18]
[420179861,1775753442499,-500.0,0.00019178,18]
[420179862,1775753442509,-587.88,0.00019178,18]
[420179863,1775753442518,-2359.2,0.00019178,18]
[420179864,1775753442527,-500.0,0.00019178,18]
[420179865,1775753442536,-500.48587305,0.00019178,18]
[420179866,1775753442546,-250.54643532,0.00019178,18]
[420179867,1775753442556,-1133.32,0.00019178,18]
[420179868,1775753442566,-500.0,0.00019178,18]
[420179869,1775753442576,-569.0,0.00019178,18]
[420179870,1775753442586,-555.36256107,0.00019178,18]
[420179871,1775753442596,-618.58,0.00019178,18]
[420179872,1775753442606,-726.91,0.00019178,18]
[420179873,1775753442616,-504.01596888,0.00019178,18]
[420179874,1775753442626,-1590.54,0.00019178,18]
[420179875,1775753442636,-500.0,0.00019178,18]
[420179876,1775753442645,-1855.73,0.00019178,18]
[420179877,1775753442655,-1696.88,0.00019178,18]
[420179878,1775753442665,-3690.19,0.00019178,18]
[420179879,1775753442675,-500.0,0.00019178,18]
[420179880,1775753442684,-602.94,0.00019178,18]
[420179881,1775753442695,-500.0,0.00019178,18]
[420179882,1775753442704,-500.0,0.00019178,18]
[420179883,1775753442714,-681.92,0.00019178,18]
[420179884,1775753442725,-500.0,0.00019178,18]
[420179885,1775753442734,-500.0,0.00019178,18]
[420179886,1775753442744,-500.15520081,0.00019178,18]
[420179887,1775753442754,-151.0,0.00019178,2]
[420179888,1775753442764,-151.0,0.00019178,2]
[420179889,1775753442774,-500.0,0.00019178,18]
[420179890,1775753442783,-500.0,0.00019178,18]
[420179891,1775753442793,-500.0,0.00019178,18]
[420179892,1775753442802,-899.11,0.00019178,18]
[420179893,1775753442812,-500.0,0.00019178,18]
[420179894,1775753442822,-787.13,0.00019178,18]
[420179895,1775753442832,-500.0,0.00019178,18]
[420179896,1775753442842,-1124.15,0.00019178,18]
[420179897,1775753442852,-500.0,0.00019178,18]
[420179898,1775753442862,-500.0,0.00019178,18]
[420179899,1775753442871,-1680.62,0.00019178,18]
[420179900,1775753442881,-586.58,0.00019178,18]
[420179901,1775753442890,-500.0,0.00019178,10]
[420179902,1775753442901,-500.0,0.00019178,18]
[420179903,1775753442911,-858.58,0.00019178,18]
[420179904,1775753442920,-732.44,0.00019178,18]
[420179905,1775753442930,-591.38,0.00019178,18]
[420179906,1775753442940,-500.0,0.00019178,18]
[420179907,1775753442950,-500.0,0.00019178,18]
[420179908,1775753442959,-500.0,0.00019178,18]
[420179909,1775753442969,-500.0,0.00019178,18]
[420179910,1775753442981,-500.0,0.00019178,18]
[420179911,1775753442991,-500.0,0.00019178,18]
[420179912,1775753443000,-500.0,0.00019178,18]
[420179913,1775753443010,-296.84756047,0.00019178,18]
[420179914,1775753443019,-500.0,0.00019178,18]
[420179915,1775753443028,-500.0,0.00019178,18]
[420179916,1775753443038,-500.0,0.00019178,18]
[420179917,1775753443047,-548.57741404,0.00019178,18]
[420179918,1775753443058,-1884.74,0.00019178,18]
[420179919,1775753443068,-500.0,0.00019178,18]
[420179920,1775753443078,-884.42,0.00019178,18]
[420179921,1775753443088,-500.0,0.00019178,18]
[420179922,1775753443099,-514.74419801,0.00019178,18]
[420179923,1775753443109,-517.03386296,0.00019178,18]
[420179924,1775753443119,-643.2,0.00019178,18]
[420179925,1775753443129,-1171.52,0.00019178,18]
[420179926,1775753443138,-500.0,0.00019178,18]
[420179927,1775753443149,-500.0,0.00019178,18]
[420179929,1775753443159,-500.0,0.00019178,18]
[420179931,1775753443169,-500.0,0.00019178,18]
[420179933,1775753443179,-1115.72,0.00019178,18]
[420179934,1775753443190,-1187.91,0.00019178,18]
[420179935,1775753443200,-500.0,0.00019178,18]
[420179936,1775753443210,-250.64047303,0.00019178,18]
[420179937,1775753443219,-2356.91,0.00019178,18]
[420179939,1775753443232,-500.0,0.00019178,18]
[420179941,1775753443242,-500.0,0.00019178,18]
[420179942,1775753443252,-500.0,0.00019178,18]
[420179944,1775753443262,-500.0,0.00019178,18]
[420179945,1775753443271,-500.0,0.00019178,18]
[420179946,1775753443281,-541.17,0.00019178,18]
[420179947,1775753443291,-500.0,0.00019178,18]
[420179948,1775753443300,-500.0,0.00019178,18]
[420179950,1775753443310,-500.0,0.00019178,18]
[420179952,1775753443319,-1049.45,0.00019178,18]
[420179954,1775753443329,-500.0,0.00019178,18]
[420179955,1775753443338,-500.0,0.00019178,18]
[420179956,1775753443348,-500.0,0.00019178,18]
[420179957,1775753443357,-500.0,0.00019178,18]
[420179958,1775753443366,-688.41,0.00019178,18]
[420179959,1775753443376,-500.0,0.00019178,18]
[420179960,1775753443386,-500.0,0.00019178,18]
[420179961,1775753443395,-500.0,0.00019178,18]
[420179962,1775753443405,-500.0,0.00019178,18]
[420179963,1775753443415,-500.0,0.00019178,18]
[420179964,1775753443424,-834.4,0.00019178,18]
[420179965,1775753443433,-500.0,0.00019178,18]
[420179966,1775753443442,-500.0,0.00019178,18]
[420179967,1775753443452,-500.0,0.00019178,18]
[420179968,1775753443462,-500.0,0.00019178,18]
[420179969,1775753443472,-500.0,0.00019178,18]
[420179970,1775753443484,-1077.81,0.00019178,18]
[420179971,1775753443493,-506.83,0.00019178,18]
[420179972,1775753443503,-5183.13,0.00019178,18]
[420179973,1775753443512,-938.5,0.00019178,18]
[420179974,1775753443522,-577.73,0.00019178,18]
[420179975,1775753443531,-500.0,0.00019178,18]
[420179976,1775753443541,-500.0,0.00019178,18]
[420179977,1775753443551,-1859.82,0.00019178,18]
[420179978,1775753443560,-500.0,0.00019178,18]
[420179979,1775753443570,-500.0,0.00019178,18]
[420179980,1775753443579,-516.78,0.00019178,18]
[420179981,1775753443588,-500.0,0.00019178,18]
[420179982,1775753443598,-500.0,0.00019178,18]
[420179983,1775753443606,-500.0,0.00019178,18]
[420179984,1775753443616,-500.0,0.00019178,18]
[420179985,1775753443625,-576.34,0.00019178,18]
[420179986,1775753443634,-500.0,0.00019178,18]
[420179987,1775753443643,-397.48510707,0.00019178,18]
[420179988,1775753443653,-500.0,0.00019178,18]
[420179989,1775753443662,-500.0,0.00019178,18]
[420179990,1775753443671,-500.0,0.00019178,18]
[420179991,1775753443680,-5183.93,0.00019178,18]
[420179992,1775753443690,-500.0,0.00019178,18]
[420179993,1775753443700,-500.0,0.00019178,18]
[420179994,1775753443710,-500.0,0.00019178,18]
[420179995,1775753443719,-500.0,0.00019178,18]
[420179996,1775753443731,-500.0,0.00019178,18]
[420179997,1775753443740,-625.01114242,0.00019178,18]
[420179998,1775753443748,-500.0,0.00019178,18]
[420179999,1775753443757,-1743.71,0.00019178,18]
[420180000,1775753443767,-591.07720251,0.00019178,18]
[420180001,1775753443776,-500.0,0.00019178,18]
[420180002,1775753443786,-653.52,0.00019178,18]
[420180003,1775753443796,-500.0,0.00019178,18]
[420180004,1775753443806,-652.86,0.00019178,2]
[420180005,1775753443815,-500.0,0.00019178,18]
[420180006,1775753443825,-538.5,0.00019178,18]
[420180007,1775753443835,-2957.14,0.00019178,18]
[420180008,1775753443844,-1437.23,0.00019178,18]
[420180009,1775753443853,-500.0,0.00019178,18]
[420180010,1775753443863,-730.43,0.00019178,18]
[420180011,1775753443872,-500.0,0.00019178,18]
[420180012,1775753443883,-500.0,0.00019178,18]
[420180013,1775753443892,-500.0,0.00019178,18]
[420180014,1775753443902,-500.19280723,0.00019178,18]
[420180015,1775753443912,-500.0,0.00019178,18]
[420180016,1775753443922,-500.0,0.00019178,18]
[420180017,1775753443931,-500.0,0.00019178,18]
[420180018,1775753443941,-869.2,0.00019178,18]
[420180019,1775753443951,-581.69,0.00019178,18]
[420180020,1775753443961,-500.0,0.00019178,18]
[420180021,1775753443971,-500.0,0.00019178,12]
[420180022,1775753443981,-500.0,0.00019178,18]
[420180023,1775753443991,-500.0,0.00019178,18]
[420180024,1775753444000,-500.0,0.00019178,18]
[420180025,1775753444010,-500.0,0.00019178,18]
[420180026,1775753444020,-500.0,0.00019178,18]
[420180027,1775753444029,-271.26556363,0.00019178,18]
[420180028,1775753444039,-500.0,0.00019178,18]
[420180029,1775753444049,-500.0,0.00019178,18]
[420180030,1775753444059,-5703.97,0.00019178,18]
[420180031,1775753444068,-567.60209514,0.00019178,18]
[420180032,1775753444078,-500.0,0.00019178,18]
[420180033,1775753444088,-500.0,0.00019178,18]
[420180034,1775753444098,-500.0,0.00019178,18]
[420180035,1775753444108,-500.0,0.00019178,18]
[420180036,1775753444118,-500.0,0.00019178,18]
[420180037,1775753444128,-1836.55,0.00019178,18]
[420180038,1775753444138,-500.0,0.00019178,18]
[420180039,1775753444149,-500.0,0.00019178,18]
[420180040,1775753444158,-589.2758382,0.00019178,18]
[420180041,1775753444168,-500.0,0.00019178,18]
[420180042,1775753444178,-500.0,0.00019178,18]
[420180043,1775753444188,-500.0,0.00019178,18]
[420180044,1775753444198,-500.0,0.00019178,18]
[420180045,1775753444209,-500.0,0.00019178,18]
[420180046,1775753444218,-500.0,0.00019178,18]
[420180047,1775753444229,-500.0,0.00019178,18]
[420180048,1775753444239,-500.0,0.00019178,18]
[420180049,1775753444249,-820.14,0.00019178,18]
[420180050,1775753444259,-500.0,0.00019178,18]
[420180051,1775753444269,-500.0,0.00019178,18]
[420180052,1775753444279,-500.0,0.00019178,18]
[420180053,1775753444289,-500.0,0.00019178,18]
[420180054,1775753444299,-508.70029528,0.00019178,18]
[420180055,1775753444310,-500.0,0.00019178,18]
[420180056,1775753444320,-8333.33,0.00019178,18]
[420180057,1775753444329,-608.03,0.00019178,18]
[420180058,1775753444339,-1223.53,0.00019178,18]
[420180059,1775753444349,-4448.01,0.00019178,18]
[420180060,1775753444358,-500.52508548,0.00019178,18]
[420180061,1775753444369,-500.0,0.00019178,18]
[420180062,1775753444378,-500.0,0.00019178,18]
[420180063,1775753444388,-500.0,0.00019178,18]
[420180064,1775753444398,-757.6,0.00019178,18]
[420180065,1775753444408,-500.0,0.00019178,18]
[420180066,1775753444419,-500.0,0.00019178,18]
[420180067,1775753444429,-174.14832764,0.00019178,2]
[420180068,1775753444439,-500.0,0.00019178,18]
[420180069,1775753444448,-500.0,0.00019178,18]
[420180070,1775753444458,-599.53,0.00019178,18]
[420180071,1775753444468,-500.0,0.00019178,18]
[420180072,1775753444478,-500.0,0.00019178,18]
[420180073,1775753444488,-737.58,0.00019178,2]
[420180074,1775753444498,-6322.33,0.00019178,18]
[420180075,1775753444508,-500.0,0.00019178,18]
[420180076,1775753444518,-968.79,0.00019178,18]
[420180077,1775753444528,-500.0,0.00019178,18]
[420180078,1775753444538,-500.0,0.00019178,18]
[420180079,1775753444548,-500.0,0.00019178,18]
[420180080,1775753444559,-1014.5,0.00019178,18]
[420180081,1775753444569,-500.0,0.00019178,18]
[420180082,1775753444579,-500.0,0.00019178,18]
[420180083,1775753444589,-777.74,0.00019178,18]
[420180084,1775753444599,-694.69,0.00019178,18]
[420180085,1775753444610,-500.0,0.00019178,18]
[420180086,1775753444619,-500.0,0.00019178,18]
[420180087,1775753444630,-500.0,0.00019178,18]
[420180088,1775753444640,-500.0,0.00019178,18]
[420180089,1775753444649,-500.91111597,0.00019178,18]
[420180090,1775753444659,-500.0,0.00019178,18]
[420180091,1775753444669,-500.0,0.00019178,18]
[420180092,1775753444679,-500.0,0.00019178,18]
[420180093,1775753444689,-516.47,0.00019178,18]
[420180094,1775753444699,-500.0,0.00019178,18]
[420180095,1775753444709,-523.98297591,0.00019178,18]
[420180096,1775753444719,-500.0,0.00019178,18]
[420180097,1775753444729,-500.0,0.00019178,18]
[420180098,1775753444740,-500.0,0.00019178,18]
[420180099,1775753444750,-500.0,0.00019178,18]
[420180100,1775753444761,-500.0,0.00019178,18]
[420180101,1775753444771,-500.0,0.00019178,18]
[420180102,1775753444781,-2450.55,0.00019178,18]
[420180103,1775753444791,-1134.44,0.00019178,18]
[420180104,1775753444801,-500.0,0.00019178,18]
[420180105,1775753444811,-500.0,0.00019178,18]
[420180106,1775753444822,-811.31,0.00019178,18]
[420180107,1775753444831,-500.0,0.00019178,18]
[420180108,1775753444841,-500.0,0.00019178,18]
[420180109,1775753444851,-500.0,0.00019178,18]
[420180110,1775753444861,-500.0,0.00019178,18]
[420180111,1775753444871,-500.0,0.00019178,18]
[420180112,1775753444881,-833.43,0.00019178,18]
[420180113,1775753444891,-745.14,0.00019178,18]
[420180114,1775753444902,-500.0,0.00019178,18]
[420180115,1775753444913,-502.58259037,0.00019178,18]
[420180116,1775753444924,-502.07583449,0.00019178,18]
[420180117,1775753444934,-500.0,0.00019178,18]
[420180118,1775753444944,-500.0,0.00019178,18]
[420180119,1775753444954,-500.0,0.00019178,18]
[420180120,1775753444964,-500.0,0.00019178,18]
[420180121,1775753444974,-500.0,0.00019178,18]
[420180122,1775753444986,-500.0,0.00019178,18]
[420180123,1775753444996,-520.32178659,0.00019178,18]
[420180124,1775753445007,-500.0,0.00019178,18]
[420180125,1775753445018,-500.0,0.00019178,18]
[420180126,1775753445028,-727.78,0.00019178,18]
[420180127,1775753445039,-500.0,0.00019178,18]
[420180128,1775753445049,-500.0,0.00019178,18]
[420180129,1775753445060,-500.0,0.00019178,18]
[420180130,1775753445070,-500.0,0.00019178,18]
[420180131,1775753445080,-500.0,0.00019178,18]
[420180132,1775753445091,-500.0,0.00019178,18]
[420180133,1775753445100,-500.0,0.00019178,18]
[420180134,1775753445110,-500.0,0.00019178,18]
[420180135,1775753445120,-663.12,0.00019178,18]
[420180136,1775753445131,-500.0,0.00019178,18]
[420180137,1775753445141,-286.59533957,0.00019178,18]
[420180138,1775753445152,-427.09996928,0.00019178,18]
[420180139,1775753445162,-503.93,0.00019178,18]
[420180140,1775753445172,-554.27,0.00019178,18]
[420180141,1775753445182,-196.92080781,0.00019178,18]
[420180142,1775753445192,-500.0,0.00019178,18]
[420180143,1775753445202,-555.02937805,0.00019178,18]
[420180144,1775753445213,-500.0,0.00019178,18]
[420180145,1775753445223,-500.0,0.00019178,18]
[420180146,1775753445235,-500.0,0.00019178,18]
[420180147,1775753445246,-500.0,0.00019178,18]
[420180148,1775753445256,-500.0,0.00019178,18]
[420180149,1775753445267,-938.7,0.00019178,18]
[420180150,1775753445277,-500.0,0.00019178,18]
[420180151,1775753445288,-500.0,0.00019178,18]
[420180152,1775753445299,-500.0,0.00019178,18]
[420180153,1775753445310,-715.45,0.00019178,18]
[420180154,1775753445321,-500.0,0.00019178,18]
[420180155,1775753445332,-500.0,0.00019178,18]
[420180156,1775753445342,-500.0,0.00019178,18]
[420180157,1775753445352,-277.62765222,0.00019178,18]
[420180158,1775753445363,-709.75,0.00019178,18]
[420180159,1775753445373,-500.0,0.00019178,11]
[420180160,1775753445384,-258.84957162,0.00019178,18]
[420180161,1775753445395,-500.0,0.00019178,18]
[420180162,1775753445405,-1647.47,0.00019178,18]
[420180163,1775753445416,-1129.55,0.00019178,18]
[420180164,1775753445426,-500.0,0.00019178,18]
[420180165,1775753445437,-533.47575672,0.00019178,18]
[420180166,1775753445448,-500.0,0.00019178,18]
[420180167,1775753445458,-500.0,0.00019178,18]
[420180168,1775753445468,-1624.74,0.00019178,18]
[420180169,1775753445479,-500.0,0.00019178,18]
[420180170,1775753445489,-833.34,0.00019178,18]
[420180171,1775753445500,-500.0,0.00019178,18]
[420180172,1775753445511,-500.0,0.00019178,7]
[420180173,1775753445521,-5842.3,0.00019178,18]
[420180174,1775753445530,-500.0,0.00019178,18]
[420180175,1775753445541,-500.0,0.00019178,18]
[420180176,1775753445551,-508.20432931,0.00019178,18]
[420180177,1775753445562,-500.0,0.00019178,18]
[420180178,1775753445572,-2030.59,0.00019178,18]
[420180179,1775753445583,-500.0,0.00019178,18]
[420180180,1775753445593,-681.37,0.00019178,18]
[420180181,1775753445604,-281.43898158,0.00019178,2]
[420180182,1775753445613,-500.0,0.00019178,18]
[420180183,1775753445623,-500.0,0.00019178,18]
[420180184,1775753445634,-598.58,0.00019178,18]
[420180185,1775753445645,-645.91627898,0.00019178,18]
[420180186,1775753445656,-500.0,0.00019178,18]
[420180187,1775753445667,-500.0,0.00019178,18]
[420180188,1775753445677,-771.36,0.00019178,18]
[420180189,1775753445687,-522.60656768,0.00019178,18]
[420180190,1775753445697,-544.15919056,0.00019178,18]
[420180191,1775753445708,-587.35,0.00019178,18]
[420180192,1775753445718,-500.0,0.00019178,18]
[420180193,1775753445730,-500.0,0.00019178,18]
[420180194,1775753445740,-500.0,0.00019178,18]
[420180195,1775753445751,-2821.38,0.00019178,18]
[420180196,1775753445761,-500.0,0.00019178,18]
[420180197,1775753445772,-2367.44,0.00019178,18]
[420180198,1775753445782,-500.0,0.00019178,18]
[420180199,1775753445792,-1468.71,0.00019178,18]
[420180200,1775753445802,-821.54,0.00019178,18]
[420180201,1775753445812,-500.0,0.00019178,18]
[420180202,1775753445822,-500.0,0.00019178,18]
[420180203,1775753445832,-500.0,0.00019178,18]
[420180204,1775753445842,-4166.66,0.00019178,18]
[420180205,1775753445851,-500.0,0.00019178,18]
[420180206,1775753445862,-3290.25,0.00019178,18]
[420180207,1775753445872,-500.0,0.00019178,18]
[420180208,1775753445881,-633.83576519,0.00019178,18]
[420180209,1775753445891,-500.0,0.00019178,18]
[420180210,1775753445901,-500.0,0.00019178,18]
[420180211,1775753445911,-500.0,0.00019178,18]
[420180212,1775753445921,-500.0,0.00019178,18]
[420180216,1775753446166,-500.0,0.00019178,18]
[420180217,1775753446187,-576.96,0.00019178,18]
[420180218,1775753446196,-500.0,0.00019178,18]
[420180219,1775753446206,-5428.07,0.00019178,18]
[420180220,1775753446215,-500.0,0.00019178,18]
[420180221,1775753446225,-500.0,0.00019178,18]
[420180222,1775753446237,-1067.42,0.00019178,18]
[420180223,1775753446246,-500.0,0.00019178,18]
[420180224,1775753446256,-500.0,0.00019178,18]
[420180225,1775753446266,-2619.94,0.00019178,18]
[420180226,1775753446275,-1047.25,0.00019178,18]
[420180227,1775753446284,-500.78440441,0.00019178,18]
[420180228,1775753446295,-500.0,0.00019178,18]
[420180229,1775753446305,-500.0,0.00019178,18]
[420180230,1775753446315,-500.0,0.00019178,2]
[420180231,1775753446324,-500.0,0.00019178,18]
[420180232,1775753446334,-374.73006408,0.00019178,18]
[420180233,1775753446343,-500.0,0.00019178,18]
[420180234,1775753446352,-500.0,0.00019178,18]
[420180235,1775753446362,-500.0,0.00019178,18]
[420180236,1775753446371,-4541.2,0.00019178,18]
[420180237,1775753446381,-500.0,0.00019178,18]